Cogmind - Beta 9.2 *** ADVENTURER MODE // 2019.12.06 @ 13:55:47 Player: Sir Arcana Result: Destroyed by Y-45 Defender with Beam Rifle Performance ------------- Evolutions (1) 500 Regions Visited (3) 600 Robots Destroyed (13) 65 Value Destroyed (403) 403 Prototype IDs (3) 60 Alien Tech Used (0) 0 Bonus (49) 49 TOTAL SCORE: 1677 Bonus ------- Follower Combat Kills 103 Friendly Fire -54 Cogmind --------- Core Integrity 0/400 Matter 234/300 Energy 100/100 System Corruption 0% Temperature Cool (9) Movement Core (50) Location -9/Materials Parts ------- > --- POWER (1) -------- (None) > --- PROPULSION (2) --- (None) > --- UTILITY (4) ------ Visual Processing Unit > --- WEAPON (2) ------- (None) > --- INVENTORY (4) ---- Light Ion Engine Aluminum Leg Signal Interpreter ECM Suite Peak State ------------ > --- POWER ------------ Light Ion Engine > --- PROPULSION ------- Aluminum Leg Aluminum Leg > --- UTILITY ---------- Medium Storage Unit Visual Processing Unit Shield Generator Hacking Suite > --- WEAPON ----------- EM Pulse Gun EM Pulse Gun > --- INVENTORY -------- Light Ion Engine Aluminum Leg Aluminum Leg Improved Hover Unit Signal Interpreter ECM Suite Rocket Launcher Mining Laser [Rating: 14] Favorites ----------- Power Light Ion Engine Engine Light Ion Engine Propulsion Aluminum Leg Leg Aluminum Leg Wheel Wheel Hover Unit Hover Unit Utility Medium Storage Unit Device Shield Generator Storage Medium Storage Unit Processor Visual Processing Unit Hackware Hacking Suite Weapon EM Pulse Gun Energy Gun EM Pulse Gun Ballistic Gun Assault Rifle Launcher Grenade Launcher Build | -11 -10 -10 -9 ------- Run | Scr Mat Min Mat Slots Evolved 2 | . . . 2 Power . | . . . . Propulsion . | . . . . Utility 2 | . . . 2 Weapon . | . . . . Parts Attached 21 | 8 6 . 7 Power 1 | 1 . . . Engine 1 | 1 . . . Core . | . . . . Reactor . | . . . . Propulsion 8 | 4 . . 4 Treads . | . . . . Leg 4 | 2 . . 2 Wheel 2 | 2 . . . Hover 2 | . . . 2 Flight . | . . . . Utility 6 | 1 3 . 2 Device 2 | . 2 . . Storage 2 | 1 1 . . Processor 1 | . . . 1 Hackware 1 | . . . 1 Protection . | . . . . Artifact . | . . . . Weapon 6 | 2 3 . 1 Energy Gun 2 | 1 1 . . Energy Cannon . | . . . . Ballistic Gun 1 | 1 . . . Ballistic Cannon . | . . . . Launcher 3 | . 2 . 1 Special Weapon . | . . . . Impact Weapon . | . . . . Slashing Weapon . | . . . . Piercing Weapon . | . . . . Special Melee Weapon . | . . . . Unidentified Prototypes . | . . . . Parts Lost 10 | . . . 10 Power 1 | . . . 1 Propulsion 3 | . . . 3 Utility 3 | . . . 3 Weapon 3 | . . . 3 Highest Loss Streak 10 | . . . 10 Average Slot Usage (%) 92 | . 94 100 81 Engine 12 | . 14 14 9 Leg 23 | . 28 28 14 Hover 1 | . . . 5 Device 10 | . 9 14 8 Storage 12 | . 14 14 11 Processor 3 | . . . 11 Hackware 2 | . . . 5 Energy Gun 21 | . 18 28 15 Launcher 2 | . 8 . . Naked Turns . | . . . . Heaviest Build 17 | 11 17 17 17 Greatest Support 20 | 20 20 20 20 Greatest Overweight (x) 2 | 2 . . 1 Average Overweight (x) . | . . . . Largest Inventory Capacity 8 | 6 8 8 8 Average Capacity 7 | 5 6 8 7 Most Carried 8 | 6 8 8 8 Average Carried 7 | 5 5 7 7 Final Capacity 8 | 6 8 8 4 Final Carried 8 | 6 8 8 4 Class Distribution -------------------- 100% | Mutant Dominant Class ---------------- Mutant | -10/Materials Mutant | -10/Mines Mutant | -9/Materials Resources | -11 -10 -10 -9 ----------- Run | Scr Mat Min Mat Matter Collected 400 | 222 125 13 40 Remotely . | . . . . Salvage Created 404 | . 167 61 176 Parts 14 | . 5 3 6 Haulers Intercepted . | . . . . Recyclers Shooed . | . . . . Parts Field Recycled . | . . . . Retrieved Matter . | . . . . Parts Self-Destructed . | . . . . Prevented . | . . . . Kills | -11 -10 -10 -9 ------- Run | Scr Mat Min Mat Combat Hostiles Destroyed 11 | . 4 3 4 Guns 6 | . 1 3 2 AOE 5 | . 3 . 2 Classes Destroyed 4 | . 2 1 1 Watcher 2 | . 1 . 1 Grunt 7 | . 4 1 2 Sentry 2 | . . . 2 Assembled 2 | . . 2 . Best Kill Streak 2 | . 2 1 2 Combat Bots Only 2 | . 2 1 2 Max Kills in Single Turn 1 | . 1 1 1 Gunslinging . | . . . . Exploded 1 | . 1 . 1 Melee . | . . . . Uniques/NPCs Destroyed . | . . . . Combat | -11 -10 -10 -9 -------- Run | Scr Mat Min Mat Damage Taken 1034 | . 57 37 940 Core 407 | . . . 407 Absorbed by Shields 66 | . . 15 51 Core Remaining (%) 100 | 100 . 100 . Volleys Fired 43 | . 8 10 25 Largest 2 | . 2 2 2 Hottest 80 | . 80 80 80 Shots Fired 63 | . 9 20 34 Gun 55 | . 7 20 28 Cannon . | . . . . Launcher 8 | . 2 . 6 Special . | . . . . Kinetic . | . . . . Thermal . | . . . . Explosive 8 | . 2 . 6 Electromagnetic 55 | . 7 20 28 Robot Hit Streak 27 | . 7 9 27 Robot Miss Streak 5 | . . 1 5 Penetration Max . | . . . . Secondary Targets . | . . . . Shots Hit Robots 48 | . 7 14 27 Core Hits 26 | . 8 5 13 Critical Hits . | . . . . Critical Kills . | . . . . Critical Parts Destroyed . | . . . . Melee Attacks . | . . . . Impact . | . . . . Slashing . | . . . . Piercing . | . . . . Sneak Attacks . | . . . . Combat Hostiles . | . . . . Follow-up Attacks . | . . . . Damage Inflicted 1119 | . 309 132 678 Guns 564 | . 106 132 326 Cannons . | . . . . Explosions 555 | . 203 . 352 Melee . | . . . . Ramming . | . . . . Kinetic . | . . . . Thermal 191 | . 76 . 115 Explosive 329 | . 127 . 202 Electromagnetic 599 | . 106 132 361 Impact . | . . . . Slashing . | . . . . Piercing . | . . . . Highest Corruption . | . . . . Average Corruption . | . . . . Corruption Purged . | . . . . Overload Shots . | . . . . Overflow Damage 12 | . . . 12 Projectiles . | . . . . Explosions 12 | . . . 12 Melee . | . . . . Knockbacks . | . . . . Impact . | . . . . Kinetic . | . . . . Secondary . | . . . . Self-Inflicted Damage 53 | . . . 53 Shots 4 | . . . 4 Rammed . | . . . . Targets Rammed . | . . . . Kicked . | . . . . Crushed . | . . . . Highest Temperature 84 | . 18 84 54 Average Temperature 24 | . 12 35 17 Received Heat Transfer 517 | . 42 18 457 Siege Activations . | . . . . Robots Corrupted . | . . . . Combat Hostiles . | . . . . Parts Fried 4 | . . . 4 Impact Corruptions . | . . . . Robots Melted . | . . . . Combat Hostiles . | . . . . Parts Melted . | . . . . Heat Transferred 350 | . 100 . 250 Parts Sabotaged . | . . . . Parts Stolen . | . . . . Parts Stripped . | . . . . Power Chain Reactions 5 | . 2 . 3 Missiles Intercepted . | . . . . Alert | -11 -10 -10 -9 ------- Run | Scr Mat Min Mat Peak Influence 181 | . 136 88 181 Average Influence 71 | . 91 53 97 Maximum Alert Level . | . . . . Low Security (%) 100 | 100 100 100 100 Level 1 . | . . . . Level 2 . | . . . . Level 3 . | . . . . Level 4 . | . . . . Level 5 . | . . . . High Security . | . . . . Max Security . | . . . . Squads Dispatched 2 | . . . 2 Investigation . | . . . . Extermination . | . . . . Reinforcement 2 | . . . 2 Assault . | . . . . Garrison . | . . . . Intercept . | . . . . Construction Impeded . | . . . . Haulers Reinforced . | . . . . Stealth | -11 -10 -10 -9 --------- Run | Scr Mat Min Mat Distress Signals 3 | . . . 3 Communications Jammed . | . . . . Distress Signals . | . . . . Times Spotted 28 | . 5 8 15 Peak Tracking Total 7 | . 2 5 7 Tactical Retreats 4 | . . 2 2 Traps | -11 -10 -10 -9 ------- Run | Scr Mat Min Mat Traps Triggered . | . . . . Indirectly . | . . . . Trap Hack Attempts . | . . . . Triggered . | . . . . Disarmed . | . . . . Reprogrammed . | . . . . Reused . | . . . . Traps Extracted . | . . . . Installed . | . . . . Triggered . | . . . . Machines | -11 -10 -10 -9 ---------- Run | Scr Mat Min Mat Machines Disabled 3 | . 1 1 1 Max in Single Turn 1 | . 1 1 1 Machines Sabotaged . | . . . . Garrisons Compromised . | . . . . Overloaded Fab Kills . | . . . . Fab Network Shutdowns . | . . . . Hacking | -11 -10 -10 -9 --------- Run | Scr Mat Min Mat Machines Accessed 4 | . 2 . 2 Terminals 3 | . 1 . 2 Fabricators . | . . . . Repair Stations . | . . . . Recycling Units 1 | . 1 . . Scanalyzers . | . . . . Garrison Access . | . . . . Total Hacks 4 | . 2 . 2 Successful 4 | . 2 . 2 Failed . | . . . . Catastrophic . | . . . . Database Lockouts . | . . . . Manual . | . . . . Terminals 3 | . 1 . 2 Fabricators . | . . . . Repair Stations . | . . . . Recycling Units 1 | . 1 . . Scanalyzers . | . . . . Garrison Access . | . . . . Terminal Hacks 3 | . 1 . 2 Prototype ID Bank 1 | . . . 1 Alert Level 2 | . 1 . 1 Fabricator Hacks . | . . . . Repair Station Hacks . | . . . . Recycling Unit Hacks 1 | . 1 . . Retrieve Components 1 | . 1 . . Scanalyzer . | . . . . Garrison Access Hacks . | . . . . Unauthorized Hacks . | . . . . Terminals . | . . . . Fabricators . | . . . . Repair Stations . | . . . . Recycling Units . | . . . . Scanalyzers . | . . . . Garrison Access . | . . . . Data Cores Recovered 1 | . . . 1 Used . | . . . . Hacking Detections 2 | . 1 . 1 Full Trace Events . | . . . . Feedback Events . | . . . . Feedback Blocked . | . . . . Robot Schematics Acquired . | . . . . Robots Built . | . . . . Matter . | . . . . Time . | . . . . Total Robot Build Rating . | . . . . Part Schematics Acquired . | . . . . Parts Built . | . . . . Matter . | . . . . Time . | . . . . Total Part Build Rating . | . . . . Parts Repaired . | . . . . Time . | . . . . Parts Recycled . | . . . . Recycled Matter . | . . . . Retrieved Matter . | . . . . Retrieved Components 1 | . 1 . . Parts Scanalyzed . | . . . . Part Schematics Acquired . | . . . . Parts Damaged . | . . . . Bothacking | -11 -10 -10 -9 ------------ Run | Scr Mat Min Mat Used RIF Installer . | . . . . Robots Hacked . | . . . . Non-combat . | . . . . Combat . | . . . . Robot Hacks Applied . | . . . . Relay Couplers Released . | . . . . Robots Rewired . | . . . . Allies Hacked . | . . . . Hacks Repelled . | . . . . Allies | -11 -10 -10 -9 -------- Run | Scr Mat Min Mat Total Allies 4 | . . 4 . Largest Group 4 | . . 4 2 Highest-Rated Group 71 | . . 71 32 Highest-Rated Ally 31 | . . 31 16 Total Orders . | . . . . Ally Attacks 47 | . . 32 15 Total Damage 550 | . . 414 136 Kills 9 | . . 6 3 Allies Corrupted . | . . . . Allies Melted . | . . . . Intel | -11 -10 -10 -9 ------- Run | Scr Mat Min Mat Robot Analysis Total . | . . . . Derelict Logs Recovered 1 | . . 1 . Drone Launches . | . . . . Drone Recoveries . | . . . . Exploration | -11 -10 -10 -9 ------------- Run | Scr Mat Min Mat Turns Passed 843 | 68 168 326 281 Spaces Moved 534 | 50 111 236 137 Core 22 | 22 . . . Treads . | . . . . Legs 491 | 28 111 236 116 Wheels . | . . . . Hover 21 | . . . 21 Flight . | . . . . Fastest Speed 50 | 50 120 120 116 Average Speed 117 | 100 120 120 119 Slowest Speed 150 | 150 120 120 120 Overloaded Moves . | . . . . Propulsion Burnouts . | . . . . Robots Hopped . | . . . . Cave-ins Triggered . | . . . . Exploration Rate (%) 26 | 4 25 58 18 Regions Visited 3 Branch Regions 1 Pre-discovered Areas 1 | . . 1 . Known Exits Taken . | . . . . Unknown Exits Taken 3 | 1 1 1 . Scrap Searched 1 | . . 1 . Spaces Dug . | . . . . Terrain Destroyed 54 | . 20 . 34 Melee . | . . . . Projectile . | . . . . AOE 54 | . 20 . 34 Actions | -11 -10 -10 -9 --------- Run | Scr Mat Min Mat Total 683 | 65 139 259 220 Wait 59 | . . 12 47 Move 531 | 49 110 235 137 Hop . | . . . . Pick Up 19 | 8 8 1 2 Fast Attach 6 | 4 1 . 1 Attach 7 | 2 1 . 4 Detach . | . . . . Swap 8 | 2 4 . 2 Drop 10 | . 7 1 2 Fire 43 | . 8 10 25 Melee . | . . . . Ram . | . . . . Kick . | . . . . Crush . | . . . . Escape Stasis . | . . . . Rewire . | . . . . Trap . | . . . . Miscellaneous . | . . . . Route ------- -11/Scrapyard -10/Materials -10/Mines -9/Materials History --------- Turn | Location | Event 16 | -11/Scrapyard | Discovered new exit (range 15) 69 | -11/Scrapyard | Entered Materials 200 | -10/Materials | Discovered new exit (range 11) 237 | -10/Materials | Entered Mines 238 | -10/Mines | Assembled infested the area 240 | -10/Mines | Received a Mining Laser from a helpful Derelict 293 | -10/Mines | Discovered new exit (range 6) 302 | -10/Mines | Build established: Mutant 377 | -10/Mines | Assisted by bots powering up and referring to "LRC-V3" 466 | -10/Mines | Learned location of Zion (-6) 563 | -10/Mines | Entered Materials 563 | -9/Materials | Accompanied by 2 allies 563 | -9/Materials | Evolved 2 slots: Utility x2 827 | -9/Materials | Core integrity fell below 50% 837 | -9/Materials | Core integrity fell below 20% 844 | -9/Materials | Destroyed by Y-45 Defender with Beam Rifle Last Messages --------------- 00801_ Door malfunctions. 00802_ Y-45 Defender destroyed. 00802_ Lgt. Ion Engine destroyed. 00802_ Destroyed Lgt. Ion Engine. 00804_ U-05 Engineer repairs door. 00805_ Rocket Launcher destroyed. 00806_ The unstable cave ceiling collapses. 00806_ U-05 Engineer lays Concrete. 00807_ U-05 Engineer builds a Wall. 00811_ U-05 Engineer lays Concrete. 00813_ U-05 Engineer builds a Wall. 00820_ Aluminum Leg destroyed. 00827_ U-05 Engineer lays Concrete. 00832_ The unstable cave ceiling collapses. 00832_ U-05 Engineer lays Concrete. 00840_ Hacking Suite destroyed. 00841_ U-05 Engineer lays Concrete. 00843_ Med. Storage Unit destroyed. 00843_ U-05 Engineer lays Concrete. 00844_ U-05 Engineer builds a Wall. Map ----- +----------------------------------------------------+ | ??????????????????????????? # | | ??????????????????????????? ^ # | | ??????????????????????????? + "" | | ??????????????????????????? # "" | | ?????????????????????????????#+########+##### # "" | | ????????????????????????????????????????????# # | | ????????????????????????????????????????????# #### | | ????????????????????????????????????????????# #??? | | ????????????????????????????????????????????# #??? | | ????????????????????????????????????????????# #??? | | ????????????????????????????????????????????# #??? | | ????????????????????????????????????????????# #??? | | ????????????????????????????????????????????# #??? | | ????????????????????????????????????????????# #??? | | ????????????????????????????????????????????# #??? | | ????????????????????????????????????????????# #??? | | ????????????????????????????????????????????# #??? | | ??????????????????????#######???????????????# #??? | | ????????????????????### #???????????????# #??? | | ????????????????????? #?????????####### #??? | | ????????????????????? ####??????# ## #### | | ?????????????????????? # ? ??# ! # # | | ??????????????????????? ? ! ? ""?# # T # | | ???????????????????????# Y #? "" # + "" + | | ???????????????????????# #? """ T" # # # | | ???????????????????????# @ #? """ "" # "" # # | | ???????????????????????# g#? """ "" # "T ## ## | | ???????????????????????# ## # "" ## #? | | ???????????????????????#g # ## | #? | | ???????????????????????# ####??######## ## | | ???????????????????????# ######* ## | | ??????????????????###### ###### [ | | ?????????? u ==%!%! %! | | ?????????? #### ###+###% * | | ?????????? ???# # # ####### | | ?????????? ##??#????## % ###"####????? | | ??????????? ?????????????# # #????? | | ?????????????????????????# u # #????? | | ?????????????????????????# # # #????? | | ?????????????????????????#! ## """ #????? | | ?????????????????????????#!! ### """ #????? | | ?????????????????????????#!!! #?# """ #????? | | ?????????????????????????###########?########????? | | ?????????????????????????????????????????????????? | | ?????????????????????????????????????????????????? | | ?????????????????????????????????????????????????? | | ?????????????????????????????????????????????????? | | ?????????????????????????????????????????????????? | | ?????????????????????????????????????????????????? | | ?????????????????????????????????????????????????? | +----------------------------------------------------+ Best States ------------- Heat Dissipation 28 Energy Generation 10 Energy Capacity 125 Matter Stores 300 Matter Capacity 300 Sight Range 18 Terrain Scan Density 10 ECM Strength 1 Resistance: KI 20 Resistance: TH 20 Resistance: EX 20 Resistance: EM 20 Resistance: I 20 Resistance: S 20 Resistance: P 20 Evasion (%) 50 Offensive Hacking 10 Item Schematics ----------------- None Robot Schematics ------------------ None Fabricated ------------ Nothing Alien Tech Used ----------------- None Achievements -------------- I Survived The Infestation Challenges ------------ None Game ------ Seed CatalystMachineNeutralizer Manual? 0 Play Time 00:14:08 Cumulative 10.6 hours Start 2019.12.06 @ 13:43:05 End 2019.12.06 @ 13:55:47 Sessions 1 Manual Loads 0 Difficulty Adventurer Special Mode None Game No. 6 Rogue 0 Adventurer 6 Explorer 0 Win Type - Total 0 Types 0/0/0/0/0/0/0 Lore% 22 Gallery% 20 Achievement% 16 Wizard Run 0 Options --------- ASCII 0 Keyboard 0 Movement Numpad Keybinds 0 Fullscreen 2 Font 14/Cog Map View 72x54 Tactical HUD 1 Map Filters NONE Filters NONE Steam 1 RUN: 499d8740-ceb5-428f-960d-a6eac520e435